bitfinex-derivatives/quotes_SOLF0:USTF0_20241231
["timestamp","ask_amount","ask_price","bid_price","bid_amount"]
[1735658484604,2.5324,197.73,197.68,2.5329]
[1735658484817,24.22666294,197.78,197.68,2.5329]
[1735658485005,2.5325,197.72,197.67,2.5331]
[1735658485204,2.5325,197.72,197.66,4.452]
[1735658485205,11.92157918,197.77,197.66,4.452]
[1735658485411,12.30542652,197.75,197.66,4.452]
[1735658485610,2.5327,197.71,197.66,6.9852]
[1735658486009,12.30542652,197.78,197.66,4.452]
[1735658486208,12.30542652,197.78,197.68,2.5329]
[1735658486409,24.22895825,197.78,197.68,2.5329]
[1735658486710,7.62767545,197.77,197.66,4.452]
[1735658486911,7.62767545,197.77,197.66,1.5239]
[1735658487212,20.08789601,197.77,197.66,1.5239]
[1735658487519,2.5329,197.69,197.66,1.5239]
[1735658487709,12.30542652,197.73,197.6,3.34]
[1735658487908,12.30542652,197.73,197.59,299.30542652]
[1735658488208,2.5334,197.65,197.59,299.30542652]
[1735658488404,3.34,197.69,197.56,12.30542652]
[1735658488610,3.34,197.69,197.56,15.64542652]
[1735658488809,3.34,197.69,197.58,2.5341]
[1735658489115,3.34,197.69,197.56,15.64542652]
[1735658489414,2.5336,197.64,197.59,2.534]
[1735658489817,3.34,197.69,197.56,15.64542652]
[1735658490010,2.5331,197.67,197.62,2.5336]
[1735658490714,20.83770509,197.75,197.59,12.30542652]
[1735658490715,12.30542652,197.73,197.59,299.30542652]
[1735658490913,15.64542652,197.73,197.59,299.30542652]
[1735658491617,2.5329,197.69,197.65,2.5333]
[1735658492415,2.533,197.68,197.64,2.5335]
[1735658492716,15.64542652,197.73,197.62,4.709]
[1735658493115,2.5332,197.66,197.63,2.5336]
[1735658493312,2.5332,197.66,197.62,4.709]
[1735658494010,2.5332,197.66,197.62,7.2426]
[1735658494206,15.64542652,197.73,197.62,4.709]
[1735658494408,15.64542652,197.73,197.62,17.01442652]
[1735658494617,2.5329,197.69,197.65,2.5333]
[1735658494813,2.5329,197.69,197.62,17.01442652]
[1735658495518,2.5327,197.71,197.68,2.5329]
[1735658496411,12.30542652,197.78,197.65,12.30542652]
[1735658496618,12.30542652,197.78,197.66,3.34]
[1735658497119,2.5322,197.74,197.7,2.5326]
[1735658498020,12.30542652,197.78,197.66,3.34]
[1735658498220,2.5321,197.75,197.66,3.34]
[1735658499323,2.5321,197.75,197.68,2.5329]
[1735658499518,2.5321,197.75,197.66,3.34]
[1735658500516,12.30542652,197.81,197.68,299.30542652]
[1735658500720,12.30542652,197.84,197.71,12.30542652]
[1735658500920,15.64542652,197.84,197.72,6.3272]
[1735658501220,15.64542652,197.84,197.72,7.9249]
[1735658501630,2.5313,197.81,197.77,2.5318]
[1735658501823,2.5313,197.81,197.72,7.9249]
[1735658502124,3.34,197.85,197.74,12.30542652]
[1735658503321,12.30542652,197.86,197.74,299.30542652]
[1735658503922,2.531,197.83,197.79,2.5315]
[1735658504111,12.30542652,197.86,197.74,299.30542652]
[1735658504620,12.30542652,197.86,197.79,2.5314]
[1735658505018,2.5312,197.83,197.79,2.5314]
[1735658505223,12.30542652,197.86,197.77,2.5318]
[1735658505418,12.30542652,197.86,197.74,287.0]
[1735658505720,12.30542652,197.86,197.77,2.5317]
[1735658505919,12.30542652,197.86,197.74,287.0]
[1735658506319,2.531,197.84,197.79,2.5314]
[1735658506721,2.531,197.84,197.74,287.0]
[1735658507119,12.30542652,197.86,197.74,287.0]
[1735658507520,2.531,197.84,197.79,2.5314]
[1735658507720,12.30542652,197.86,197.74,287.0]
[1735658508825,12.30542652,197.86,197.8,2.5313]
[1735658508826,2.531,197.84,197.8,2.5313]
[1735658509131,12.30542652,197.86,197.8,2.5313]
[1735658509522,12.30542652,197.86,197.74,287.0]
[1735658509829,12.30542652,197.83,197.72,4.5849]
[1735658510126,12.30542652,197.8,197.72,4.5849]
[1735658510331,2.5319,197.77,197.72,4.5849]
[1735658510526,15.64542652,197.8,197.72,4.5849]
[1735658511526,2.5317,197.78,197.74,2.5321]
[1735658511825,15.64542652,197.8,197.72,4.5849]
[1735658512021,12.30542652,197.83,197.72,4.5849]
[1735658512223,3.34,197.85,197.72,4.5849]
[1735658512525,3.34,197.85,197.73,12.30542652]
[1735658512726,2.531,197.84,197.77,2.5318]
[1735658513022,2.531,197.84,197.74,290.34]
[1735658513427,2.531,197.84,197.8,2.5313]
[1735658513629,2.5312,197.83,197.74,290.34]
[1735658513823,3.34,197.85,197.77,2.5318]
[1735658514029,12.30542652,197.83,197.77,2.5318]
[1735658514527,2.5315,197.8,197.76,2.5319]
[1735658515124,2.5317,197.79,197.75,2.5321]
[1735658515324,12.30542652,197.8,197.74,287.0]
[1735658515525,15.64542652,197.8,197.74,287.0]
[1735658515929,2.5319,197.77,197.73,2.5322]
[1735658516123,12.30542652,197.8,197.72,4.5849]
[1735658516427,2.5318,197.78,197.74,2.5322]
[1735658519827,12.30542652,197.83,197.72,4.5849]
[1735658520127,15.64542652,197.83,197.72,4.5849]
[1735658520325,5.8711,197.83,197.72,291.5849]
[1735658520627,12.30542652,197.86,197.73,3.34]
[1735658520827,3.34,197.85,197.78,2.5316]
[1735658521129,2.5313,197.82,197.78,2.5316]
[1735658521918,12.30542652,197.86,197.73,15.64542652]
[1735658522125,15.64542652,197.86,197.73,15.64542652]
[1735658522725,2.5312,197.82,197.78,2.5316]
[1735658523422,2.5314,197.81,197.78,2.5316]
[1735658523926,12.30542652,197.83,197.76,2.5318]
[1735658524626,2.5316,197.79,197.76,2.5318]
[1735658525331,12.30542652,197.83,197.73,3.34]
[1735658525524,2.5317,197.78,197.75,2.532]
[1735658525933,2.5321,197.75,197.72,4.5849]
[1735658526133,15.64542652,197.8,197.72,1.4498]
[1735658527032,12.30542652,197.77,197.71,2.5325]
[1735658527429,2.5322,197.75,197.71,2.5325]
[1735658527626,12.30542652,197.77,197.71,2.5325]
[1735658528030,12.30542652,197.77,197.65,291.7953]
[1735658528232,27.56744391,197.8,197.65,4.7953]
[1735658528432,12.30542652,197.74,197.65,4.7953]
[1735658528835,12.30542652,197.74,197.65,1.4553]
[1735658529540,3.34,197.75,197.65,1.4553]
[1735658530144,24.17770509,197.79,197.67,12.30542652]
[1735658530338,24.17770509,197.79,197.68,3.34]
[1735658530941,2.532,197.76,197.72,2.5324]
[1735658531344,12.30542652,197.77,197.68,3.34]
[1735658531642,12.30542652,197.77,197.7,2.5326]
[1735658532247,2.5323,197.74,197.7,2.5326]
[1735658532641,3.34,197.79,197.68,3.34]
[1735658532846,2.532,197.76,197.68,3.34]
[1735658533044,15.64542652,197.79,197.68,3.34]
[1735658533445,15.64542652,197.79,197.65,1.4553]
[1735658533643,12.30542652,197.76,197.65,1.4553]
[1735658533839,12.30542652,197.76,197.68,2.5329]
[1735658534043,2.5325,197.72,197.68,2.5329]
[1735658535245,12.30542652,197.76,197.65,1.4553]
[1735658535441,12.30542652,197.73,197.64,287.0]
[1735658535642,3.34,197.72,197.64,287.0]
[1735658536251,2.5332,197.67,197.63,2.5336]
[1735658536546,2.5332,197.67,197.59,4.8496]
[1735658537352,2.5333,197.66,197.59,4.8496]
[1735658537655,12.30542652,197.7,197.62,2.5336]
[1735658538349,15.64542652,197.72,197.59,1.5096]
[1735658538648,36.48313161,197.76,197.61,299.30542652]
[1735658538958,36.48313161,197.76,197.64,12.30542652]
[1735658539250,36.48313161,197.76,197.67,12.30542652]
[1735658539251,23.36980509,197.76,197.67,12.30542652]
[1735658539451,20.83770509,197.76,197.74,2.5321]
[1735658539645,2.532,197.76,197.68,4.5791]
[1735658540045,3.34,197.78,197.73,2.5322]
[1735658540351,33.14313161,197.8,197.68,4.5791]
[1735658540553,20.83770509,197.8,197.76,2.5319]
[1735658540744,3.34,197.82,197.76,2.5319]
[1735658540945,24.24637303,197.83,197.7,299.30542652]
[1735658541145,15.64542652,197.83,197.7,299.30542652]
[1735658541551,2.5314,197.81,197.76,2.5318]
[1735658542053,2.5315,197.8,197.76,2.5318]
[1735658542653,2.5316,197.79,197.75,2.532]
[1735658542858,11.9421283,197.82,197.7,299.30542652]
[1735658543149,2.5319,197.77,197.74,2.5322]
[1735658543353,15.64542652,197.83,197.7,299.30542652]
[1735658543755,2.5313,197.82,197.77,2.5317]
[1735658544451,12.30542652,197.83,197.77,2.5317]
[1735658544452,2.5313,197.81,197.77,2.5317]
[1735658545051,12.30542652,197.86,197.73,299.30542652]
[1735658545250,24.24630405,197.86,197.73,299.30542652]
[1735658545451,11.94087753,197.85,197.73,299.30542652]
[1735658545656,2.5309,197.85,197.73,299.30542652]
[1735658546057,2.5309,197.84,197.8,2.5314]
[1735658546556,12.30542652,197.86,197.79,2.5315]
[1735658546557,2.5311,197.83,197.79,2.5315]
[1735658547250,2.5313,197.81,197.77,2.5318]
[1735658547947,2.5314,197.8,197.76,2.5319]
[1735658548557,15.64542652,197.83,197.72,3.34]
[1735658548859,12.30542652,197.8,197.72,3.34]
[1735658549156,12.30542652,197.8,197.68,291.5791]
[1735658549356,12.30542652,197.8,197.68,294.9191]
[1735658550456,7.64294578,197.82,197.7,12.30542652]
[1735658550758,12.30542652,197.83,197.78,2.5316]
[1735658550759,24.24888048,197.83,197.78,2.5316]
[1735658550966,12.30542652,197.83,197.78,2.5316]
[1735658551151,12.30542652,197.83,197.73,3.34]
[1735658551355,3.34,197.84,197.81,2.5313]
[1735658551960,3.34,197.84,197.8,2.5314]
[1735658552762,5.8709,197.84,197.8,2.5314]
[1735658552961,5.8709,197.84,197.79,2.5315]
[1735658552962,3.34,197.84,197.79,2.5315]
[1735658553164,2.531,197.83,197.79,2.5315]
[1735658553358,3.34,197.84,197.79,2.5315]
[1735658553556,3.34,197.84,197.73,302.64542652]
[1735658553863,2.5312,197.82,197.73,302.64542652]
[1735658554161,2.5312,197.82,197.78,2.5316]
[1735658554568,5.8709,197.84,197.73,302.64542652]
[1735658554758,7.64128179,197.85,197.82,2.5311]
[1735658554963,2.5309,197.85,197.73,302.64542652]
[1735658555272,16.60628627,197.86,197.8,2.5313]
[1735658555563,2.5312,197.82,197.73,302.64542652]
[1735658555767,2.5312,197.82,197.78,2.5316]
[1735658555970,11.94214154,197.85,197.73,302.64542652]
[1735658556166,2.531,197.84,197.73,302.64542652]
[1735658556663,2.531,197.84,197.8,2.5313]
[1735658556870,2.531,197.84,197.73,302.64542652]
[1735658557270,2.531,197.84,197.8,2.5313]
[1735658557471,11.94102114,197.85,197.74,3.34]
[1735658558169,2.5314,197.81,197.77,2.5318]
[1735658558373,3.34,197.83,197.73,287.0]
[1735658558872,2.5314,197.8,197.76,2.5319]
[1735658559065,3.34,197.83,197.76,2.5319]
[1735658559267,2.5316,197.79,197.76,2.5319]
[1735658560165,7.64264694,197.82,197.7,12.30542652]
[1735658560374,4.30021168,197.82,197.7,12.30542652]
[1735658560666,2.5313,197.81,197.78,2.5317]
[1735658561366,2.5315,197.8,197.7,299.30542652]
[1735658561570,15.64542652,197.83,197.7,299.30542652]
[1735658561972,2.5318,197.78,197.74,2.5321]
[1735658564571,2.5318,197.77,197.74,2.5321]
[1735658565272,12.30542652,197.8,197.68,4.5791]
[1735658565473,12.30542652,197.8,197.72,2.5324]
[1735658565474,2.5321,197.75,197.72,2.5324]
[1735658565671,2.5321,197.75,197.68,4.5791]
[1735658566066,2.5321,197.75,197.71,2.5325]
[1735658566769,2.5321,197.75,197.72,2.5324]
[1735658570476,2.5324,197.73,197.68,4.5791]
[1735658570874,2.5322,197.75,197.68,4.5791]
[1735658571074,15.26674538,197.79,197.68,4.5791]
[1735658571681,2.5323,197.74,197.68,4.5791]
[1735658571881,11.94674538,197.82,197.73,12.30542652]
[1735658572276,12.30542652,197.8,197.68,291.5791]
[1735658572674,3.32,197.79,197.68,291.5791]
[1735658572873,3.32,197.79,197.71,2.5326]
[1735658573378,10.96562657,197.79,197.71,2.5326]
[1735658573683,15.26700192,197.79,197.71,2.5326]
[1735658574281,15.26700192,197.79,197.7,2.5327]
[1735658574684,2.5323,197.74,197.7,2.5327]
[1735658574885,15.26700192,197.79,197.7,2.5327]
[1735658575080,15.26700192,197.79,197.69,2.5328]
[1735658575287,2.5324,197.73,197.69,2.5328]
[1735658575482,12.30542652,197.77,197.68,4.5791]
[1735658575885,2.5327,197.7,197.68,4.5791]
[1735658576886,2.5326,197.71,197.68,4.5791]
[1735658577793,3.32,197.73,197.61,15.62542652]
[1735658578492,2.5328,197.7,197.64,2.5333]
[1735658578688,3.32,197.73,197.61,15.62542652]
[1735658579192,2.5329,197.69,197.61,15.62542652]
[1735658579591,2.5328,197.7,197.67,2.5331]
[1735658579995,3.32,197.76,197.67,2.533]
[1735658580193,2.5323,197.74,197.68,1.556]
[1735658580493,20.83770509,197.77,197.68,4.5582]
[1735658580694,20.83770509,197.78,197.68,4.5582]
[1735658581893,12.30542652,197.79,197.68,4.5582]
[1735658582496,24.25447222,197.79,197.68,4.5582]
[1735658582692,15.62542652,197.79,197.71,2.5325]
[1735658583292,2.5321,197.75,197.71,2.5325]
[1735658583494,27.57822167,197.79,197.71,2.5325]
[1735658583495,11.95279515,197.78,197.71,2.5325]
[1735658583996,2.5321,197.75,197.72,2.5324]
[1735658584495,11.95279515,197.78,197.68,4.5582]
[1735658584694,2.5316,197.79,197.7,12.30542652]
[1735658584893,2.5316,197.79,197.71,3.32]
[1735658585094,2.5316,197.79,197.75,2.532]
[1735658586905,2.5317,197.78,197.75,2.532]
[1735658588601,27.58278974,197.82,197.68,4.5582]
[1735658588792,20.15724915,197.81,197.68,7.8782]
[1735658589804,2.532,197.76,197.72,2.5323]
[1735658590606,2.532,197.76,197.73,2.5323]
[1735658591211,10.97174524,197.81,197.7,12.30542652]
[1735658591407,11.95775736,197.81,197.7,12.30542652]
[1735658591607,23.36890509,197.82,197.73,12.30542652]
[1735658591803,23.36890509,197.82,197.74,3.32]
[1735658592410,2.5312,197.82,197.74,3.32]
[1735658592611,2.5313,197.81,197.74,3.32]
[1735658592811,2.5313,197.81,197.78,2.5316]
[1735658593019,19.95654822,197.85,197.74,3.32]
[1735658593313,7.6511217,197.85,197.76,12.30542652]
[1735658593504,11.95702487,197.85,197.8,2.5314]
[1735658593902,11.95702487,197.86,197.8,2.5314]
[1735658594111,20.15752919,197.86,197.8,2.5314]
[1735658596008,7.6511217,197.85,197.77,1.5108]
[1735658596208,12.30542652,197.85,197.77,1.5108]
[1735658596504,20.50593084,197.85,197.77,1.5108]
[1735658596811,11.95702487,197.84,197.77,4.0426]
[1735658597212,11.95702487,197.85,197.77,4.0426]
[1735658597511,20.15696647,197.85,197.77,4.0426]
[1735658598209,20.15696647,197.85,197.77,1.5108]
[1735658598415,20.15696647,197.85,197.75,2.532]
[1735658598612,12.30542652,197.83,197.75,2.532]
[1735658598814,3.32,197.82,197.75,2.532]
[1735658599211,15.27702487,197.82,197.7,15.62542652]
[1735658599518,15.27702487,197.82,197.74,2.5321]
[1735658600818,15.27702487,197.82,197.7,15.62542652]
[1735658601112,3.32,197.82,197.76,2.5318]
[1735658602807,10.97316273,197.82,197.76,2.5318]
[1735658603012,15.2801826,197.82,197.7,299.30542652]
[1735658603212,15.2801826,197.82,197.7,287.0]
[1735658603713,23.48322999,197.82,197.7,287.0]
[1735658604015,4.30701987,197.81,197.7,287.0]
[1735658604310,2.532,197.76,197.69,1.5646]
[1735658604917,2.532,197.76,197.73,2.5323]
[1735658606019,15.2801826,197.82,197.7,12.30542652]
[1735658606212,2.5319,197.77,197.74,2.5322]
[1735658606413,7.8703533,197.8,197.73,7.8703533]
[1735658606715,11.52324364,197.82,197.69,1.5646]
[1735658606716,2.5316,197.79,197.75,7.8703533]
[1735658608211,2.5318,197.78,197.73,7.8703533]
[1735658608618,7.8703533,197.8,197.73,7.8703533]
[1735658609119,2.5317,197.78,197.73,10.4025533]
[1735658609313,7.8703533,197.8,197.73,10.4025533]
[1735658610511,2.532,197.76,197.73,10.4025533]
[1735658611313,2.532,197.76,197.73,2.5322]
[1735658611519,7.8703533,197.78,197.71,7.8703533]
[1735658611819,7.8703533,197.74,197.69,1.5646]
[1735658612113,2.532,197.76,197.73,2.5323]
[1735658612313,7.8703533,197.78,197.71,7.8703533]
[1735658612713,2.5319,197.76,197.73,2.5322]
[1735658615421,2.5318,197.77,197.74,2.5322]
[1735658618118,2.5318,197.77,197.69,13.8624118]
[1735658618318,2.5318,197.77,197.75,2.5321]
[1735658618913,15.28369144,197.81,197.75,2.5321]
[1735658619112,2.5317,197.78,197.75,2.5321]
[1735658624519,15.28369144,197.81,197.73,2.5322]
[1735658624724,15.28369144,197.81,197.69,304.1824118]
[1735658624920,23.49961816,197.81,197.69,304.1824118]
[1735658625120,2.532,197.76,197.69,304.1824118]
[1735658625318,2.532,197.76,197.69,17.1824118]
[1735658625922,4.30773299,197.79,197.69,17.1824118]
[1735658626216,2.5321,197.75,197.7,2.5326]
[1735658626925,4.30773299,197.79,197.7,2.5326]
[1735658627225,2.5322,197.74,197.7,2.5326]
[1735658627625,16.60554479,197.79,197.69,1.5646]
[1735658627924,12.2978118,197.76,197.63,15.6178118]
[1735658628119,12.2978118,197.76,197.64,2.5334]
[1735658628120,2.5329,197.69,197.64,2.5334]
[1735658628322,2.5329,197.69,197.63,15.6178118]
[1735658628821,2.5332,197.67,197.63,15.6178118]
[1735658629021,3.32,197.71,197.61,4.5406]
[1735658629223,12.2978118,197.7,197.61,4.5406]
[1735658629429,2.5336,197.64,197.61,4.5406]
[1735658629822,2.533,197.68,197.61,1.5718]
[1735658630025,12.2978118,197.7,197.61,1.5718]
[1735658630232,32.48534105,197.7,197.61,1.5718]
[1735658630527,12.2978118,197.7,197.61,1.5718]
[1735658631024,2.5337,197.63,197.61,1.5718]
[1735658631226,12.2978118,197.7,197.61,1.5718]
[1735658631424,24.26444231,197.7,197.61,1.5718]
[1735658631625,7.65447359,197.69,197.61,1.5718]
[1735658631922,12.2978118,197.7,197.61,1.5718]
[1735658632630,2.5337,197.63,197.61,1.5718]
[1735658633629,2.533,197.68,197.61,1.5718]
[1735658633936,3.32,197.71,197.61,1.5718]
[1735658634433,12.2978118,197.7,197.57,12.2978118]
[1735658634636,2.5343,197.58,197.56,1.5086]
[1735658635232,3.32,197.65,197.56,1.5086]
[1735658635834,2.5343,197.58,197.56,1.5086]
[1735658636538,2.534,197.6,197.56,1.5086]
[1735658637438,3.32,197.65,197.57,12.2978118]
[1735658637635,3.32,197.69,197.57,12.2978118]
[1735658637939,2.5335,197.64,197.57,12.2978118]
[1735658638340,2.5335,197.64,197.61,7.87912272]
[1735658639938,2.5336,197.63,197.61,7.87912272]
[1735658640338,2.5336,197.63,197.61,9.37652272]
[1735658641034,7.87912272,197.68,197.61,9.37652272]
[1735658641241,7.87912272,197.64,197.56,1.5086]
[1735658641430,7.87912272,197.64,197.57,7.87912272]
[1735658642034,11.19912272,197.66,197.59,7.87912272]
[1735658642230,7.87912272,197.64,197.59,7.87912272]
[1735658642439,7.87912272,197.64,197.57,9.37652272]
[1735658642440,2.534,197.6,197.57,9.37652272]
[1735658643736,2.5342,197.58,197.57,9.37652272]
[1735658643943,7.87912272,197.6,197.53,7.87912272]
[1735658644540,2.5347,197.55,197.53,7.87912272]
[1735658644740,7.87912272,197.6,197.53,7.87912272]
[1735658645842,7.87912272,197.62,197.53,10.41402272]
[1735658646233,13.8612537,197.65,197.53,2.5349]
[1735658647450,2.5345,197.57,197.53,2.5349]
[1735658647642,13.8612537,197.65,197.53,2.5349]
[1735658648455,2.5345,197.56,197.53,2.5349]
[1735658649648,2.5348,197.54,197.51,14.8546537]
[1735658649849,12.3196537,197.59,197.49,4.5479]
[1735658650243,2.5351,197.52,197.49,7.0832]
[1735658651049,12.3196537,197.59,197.49,4.5479]
[1735658651347,3.32,197.61,197.49,4.5479]
[1735658651648,2.5347,197.55,197.51,2.5351]
[1735658652552,3.32,197.61,197.51,12.3196537]
[1735658653386,2.5345,197.56,197.53,2.5349]
[1735658655469,3.32,197.61,197.53,2.5349]
[1735658655671,2.5346,197.55,197.53,2.5349]
[1735658657465,2.5346,197.55,197.52,2.535]
[1735658658266,3.32,197.67,197.54,12.3196537]
[1735658658472,3.32,197.68,197.57,12.3196537]
[1735658659057,3.32,197.68,197.58,2.5342]
[1735658659262,3.32,197.68,197.57,12.3196537]
[1735658659951,12.3196537,197.66,197.54,12.3196537]
[1735658660560,12.3196537,197.66,197.53,290.32]
[1735658660858,2.5346,197.56,197.53,3.32]
[1735658661054,12.3196537,197.66,197.53,3.32]
[1735658661459,2.5344,197.57,197.54,2.5348]
[1735658661758,2.5344,197.57,197.53,3.32]
[1735658661965,2.5349,197.53,197.51,287.0]
[1735658662260,12.3196537,197.6,197.49,7.8679]
[1735658662765,2.5348,197.54,197.51,2.5351]
[1735658663265,2.5345,197.57,197.54,2.5347]
[1735658663598,3.32,197.61,197.51,12.3196537]
[1735658663984,12.3196537,197.63,197.51,12.3196537]
[1735658664183,12.3196537,197.63,197.54,2.5347]
[1735658664184,2.5344,197.58,197.54,2.5347]
[1735658665294,12.3196537,197.63,197.54,2.5347]
[1735658665295,2.5344,197.57,197.54,2.5347]
[1735658666295,7.88872051,197.56,197.49,9.39282051]
[1735658666911,2.535,197.53,197.49,11.92822051]
[1735658667589,7.88872051,197.56,197.49,11.92822051]
[1735658668189,2.5351,197.52,197.49,11.92822051]
[1735658669103,3.32,197.6,197.5,2.5352]
[1735658669104,2.5349,197.53,197.5,2.5352]
[1735658671498,2.5347,197.55,197.51,7.88872051]
[1735658672187,2.5345,197.56,197.51,7.88872051]
[1735658672389,20.83770509,197.63,197.55,7.88872051]
[1735658672587,7.88872051,197.63,197.55,7.88872051]
[1735658673270,28.7264256,197.65,197.57,7.88872051]
[1735658673866,7.88872051,197.65,197.57,7.88872051]
[1735658674273,2.5338,197.62,197.59,2.5341]
[1735658674475,2.5338,197.62,197.55,1.5098]
[1735658674671,2.5342,197.59,197.55,4.0444]
[1735658674876,2.5342,197.59,197.55,1.5098]
[1735658675674,11.95424795,197.66,197.55,1.5098]
[1735658675869,11.95424795,197.66,197.58,2.5341]
[1735658676176,7.65280774,197.66,197.58,2.5341]
[1735658676373,2.5338,197.62,197.58,2.5341]
[1735658677381,2.5336,197.63,197.55,1.5098]
[1735658677678,2.5336,197.63,197.56,3.32]
[1735658677878,2.5336,197.63,197.58,2.5342]
[1735658678079,2.5338,197.62,197.56,3.32]
[1735658680484,2.5338,197.62,197.59,2.5341]
[1735658681679,2.5334,197.65,197.57,12.31549999]
[1735658681885,11.96098098,197.69,197.57,299.31549999]
[1735658682184,2.5329,197.69,197.66,2.5332]
[1735658682780,20.83770509,197.72,197.61,291.7869]
[1735658682979,20.83770509,197.72,197.63,12.31549999]
[1735658683179,20.83770509,197.72,197.64,3.1218]
[1735658683585,23.37020509,197.72,197.68,2.5329]
[1735658683783,20.83770509,197.72,197.64,3.1218]
[1735658683983,15.61549999,197.76,197.64,3.1218]
[1735658684184,27.56884316,197.76,197.64,3.1218]
[1735658684386,11.95334317,197.75,197.67,2.5331]
[1735658684582,20.14791379,197.75,197.64,3.1218]
[1735658684783,12.31549999,197.73,197.64,3.1218]
[1735658685185,19.96622931,197.73,197.64,3.1218]
[1735658685383,12.31549999,197.73,197.64,3.1218]
[1735658686388,24.26408786,197.73,197.64,3.1218]
[1735658686690,12.31549999,197.73,197.64,3.1218]
[1735658687187,12.31549999,197.7,197.61,4.0007]
[1735658687385,12.31549999,197.7,197.61,2.5338]
[1735658687588,15.61549999,197.7,197.61,2.5338]
[1735658687992,15.61549999,197.7,197.6,2.534]
[1735658688186,2.5336,197.64,197.6,2.534]
[1735658690183,12.31549999,197.67,197.58,5.8341]
[1735658690387,12.31549999,197.67,197.58,2.5341]
[1735658690787,2.5338,197.62,197.58,2.5341]
[1735658692390,2.5336,197.64,197.55,3.3]
[1735658692590,15.61549999,197.7,197.57,12.31549999]
[1735658694195,2.5333,197.66,197.6,2.5339]
[1735658694383,2.5333,197.66,197.57,12.31549999]
[1735658694890,2.5333,197.66,197.59,2.534]
[1735658695091,2.5333,197.66,197.6,3.3]
[1735658695692,2.5333,197.66,197.62,2.5336]
[1735658696790,2.5333,197.66,197.63,2.5336]
[1735658697394,2.5333,197.66,197.62,2.5337]
[1735658698896,15.61549999,197.7,197.62,2.5337]
[1735658699196,2.5333,197.65,197.62,2.5337]
[1735658699395,15.61549999,197.7,197.6,2.534]
[1735658699595,12.31549999,197.67,197.58,3.3]
[1735658699797,12.31549999,197.67,197.55,3.3]
[1735658700088,2.5335,197.64,197.57,2.5343]
[1735658700286,12.31549999,197.67,197.55,3.3]
[1735658701297,12.31549999,197.67,197.58,2.5342]
[1735658701494,15.61549999,197.7,197.57,12.31549999]
[1735658701691,12.31549999,197.7,197.57,12.31549999]
[1735658701888,2.5333,197.66,197.63,2.5335]
[1735658703095,2.5332,197.67,197.63,2.5335]
[1735658703295,12.31549999,197.67,197.61,3.3]
[1735658703695,2.5333,197.66,197.61,5.8338]
[1735658703891,12.31549999,197.7,197.61,3.3]
[1735658704095,8.18665411,197.72,197.62,1.4873]
[1735658704298,12.31549999,197.73,197.62,291.5486]
[1735658704493,12.31549999,197.73,197.68,2.5329]
[1735658704694,12.31549999,197.73,197.62,291.5486]
[1735658705198,2.5327,197.71,197.67,2.533]
[1735658705399,2.5327,197.71,197.62,291.5486]
[1735658706894,2.5327,197.71,197.67,2.533]
[1735658707093,11.93560701,197.75,197.66,3.3]
[1735658707297,21.08536088,197.77,197.7,12.31549999]
[1735658707600,21.08536088,197.77,197.71,1.5078]
[1735658707799,23.61716088,197.77,197.71,4.8078]
[1735658708100,21.08536088,197.77,197.71,4.8078]
[1735658708303,2.5316,197.79,197.75,2.532]
[1735658708599,2.5316,197.79,197.73,12.31549999]
[1735658708997,2.5316,197.79,197.74,2.5321]
[1735658709193,2.5317,197.78,197.74,2.5321]
[1735658709902,2.5316,197.79,197.75,2.5321]
[1735658710404,16.68475905,197.84,197.73,12.31549999]
[1735658710603,12.31549999,197.83,197.73,2.5322]
[1735658711503,2.5318,197.77,197.73,2.5322]
[1735658712805,3.3,197.79,197.71,1.5078]
[1735658713107,12.31549999,197.77,197.66,3.3]
[1735658713406,3.3,197.79,197.66,3.3]
[1735658713407,2.5324,197.73,197.68,2.5329]
[1735658714297,2.5324,197.73,197.66,3.3]